bitfinex/quotes_BTCUSD_20241123
["timestamp","ask_amount","ask_price","bid_price","bid_amount"]
[1732352324940,0.08,98098.0,98081.0,0.0465]
[1732352325169,0.00127435,98097.0,98081.0,0.0465]
[1732352325394,0.04967435,98097.0,98081.0,0.0465]
[1732352325828,0.04967435,98097.0,98072.0,0.03038467]
[1732352326055,0.08,98096.0,98072.0,0.03038467]
[1732352326278,0.00127435,98095.0,98072.0,0.03038467]
[1732352326500,0.00127435,98095.0,98072.0,0.07094559]
[1732352326742,0.00127435,98095.0,98063.0,0.0008602]
[1732352328291,0.00127435,98095.0,98063.0,0.0429829]
[1732352328504,0.00127435,98095.0,98083.0,0.15]
[1732352328716,0.00127435,98095.0,98063.0,0.0008602]
[1732352328931,0.00127435,98095.0,98066.0,0.1297]
[1732352329163,0.00127435,98095.0,98067.0,0.15]
[1732352329374,0.00127435,98095.0,98068.0,0.023]
[1732352329588,0.00127435,98095.0,98067.0,0.15]
[1732352330512,0.00127435,98095.0,98068.0,0.023]
[1732352333646,0.00127435,98095.0,98070.0,0.05474502]
[1732352335686,0.00127435,98095.0,98068.0,0.023]
[1732352335913,0.00299495,98095.0,98068.0,0.023]
[1732352337526,0.00299495,98095.0,98070.0,0.05474502]
[1732352338212,0.00299495,98095.0,98068.0,0.023]
[1732352338670,0.1284,98094.0,98068.0,0.023]
[1732352338902,0.00127435,98093.0,98068.0,0.023]
[1732352340490,0.00127435,98093.0,98066.0,0.11222979]
[1732352340709,0.0478,98092.0,98066.0,0.11222979]
[1732352341556,0.0796,98091.0,98066.0,0.11222979]
[1732352341816,0.0478,98090.0,98066.0,0.11222979]
[1732352342264,0.0478,98090.0,98066.0,0.11209629]
[1732352342962,0.0478,98090.0,98067.0,0.15]
[1732352343843,0.0478,98090.0,98068.0,0.023]
[1732352347363,0.03956169,98090.0,98068.0,0.023]
[1732352347773,0.03956169,98090.0,98067.0,0.15]
[1732352349633,0.04083605,98090.0,98067.0,0.15]
[1732352349817,0.03956169,98090.0,98067.0,0.15]
[1732352350266,0.04083605,98090.0,98067.0,0.15]
[1732352354007,0.00127436,98089.0,98067.0,0.15]
[1732352356904,0.1274,98088.0,98066.0,0.02889629]
[1732352357351,0.1274,98088.0,98070.0,0.15]
[1732352358882,0.1274,98087.0,98070.0,0.15]
[1732352359120,0.0796,98077.0,98067.0,0.5388677]
[1732352359371,0.1274,98074.0,98066.0,0.0008604]
[1732352359602,0.0796,98072.0,98066.0,0.0008604]
[1732352359851,0.05474502,98080.0,98066.0,0.0008604]
[1732352359852,0.1274,98071.0,98066.0,0.0008604]
[1732352360067,0.1274,98070.0,98066.0,0.0008604]
[1732352368114,0.124,98078.0,98066.0,0.0008604]
[1732352368542,0.124,98078.0,98067.0,0.03469604]
[1732352372081,0.124,98078.0,98067.0,0.03555624]
[1732352381069,0.05774034,98090.0,98072.0,0.1957]
[1732352381070,0.0017208,98090.0,98072.0,0.1957]
[1732352381315,0.0017208,98090.0,98073.0,0.06889581]
[1732352382661,0.0017208,98090.0,98073.0,0.0457]
[1732352382899,0.0017208,98090.0,98074.0,0.2301]
[1732352383118,0.0017208,98090.0,98075.0,0.1957]
[1732352385286,0.0017208,98090.0,98074.0,0.20145465]
[1732352385714,0.0017208,98090.0,98074.0,0.05145465]
[1732352388317,0.0017208,98090.0,98075.0,0.0474]
[1732352390357,0.0017208,98090.0,98076.0,0.023]
[1732352395137,0.0767,98089.0,98076.0,0.023]
[1732352399227,0.0767,98089.0,98074.0,0.023]
[1732352399439,0.0767,98089.0,98076.0,0.023]
[1732352399844,0.0767,98089.0,98074.0,0.023]
[1732352403912,0.079,98087.0,98073.0,0.04123544]
[1732352404175,0.0485,98083.0,98073.0,0.04123544]
[1732352404387,0.00127445,98082.0,98067.0,0.0238602]
[1732352404825,0.00127445,98082.0,98057.0,0.173]
[1732352405037,0.0485,98081.0,98060.0,0.05474502]
[1732352406500,0.0485,98081.0,98067.0,0.0008603]
[1732352409090,0.079,98080.0,98067.0,0.0008603]
[1732352409321,0.0485,98079.0,98067.0,0.0008603]
[1732352410371,0.0485,98079.0,98067.0,0.04268753]
[1732352410844,0.0497745,98078.0,98067.0,0.04268753]
[1732352412439,0.0485,98078.0,98067.0,0.04268753]
[1732352415290,0.04595605,98078.0,98067.0,0.04268753]
[1732352418117,0.079,98080.0,98067.0,0.04268753]
[1732352419458,0.0012745,98079.0,98067.0,0.04268753]
[1732352421126,0.0468,98078.0,98067.0,0.04268753]
[1732352424186,0.046582,98078.0,98067.0,0.04268753]
[1732352424407,0.046582,98080.0,98067.0,0.04268753]
[1732352425327,0.046582,98080.0,98060.0,0.0720608]
[1732352425575,0.0012745,98079.0,98060.0,0.11372732]
[1732352427126,0.04323462,98080.0,98060.0,0.11372732]
[1732352427360,0.04323462,98080.0,98060.0,0.0589823]
[1732352428761,0.04323462,98080.0,98061.0,0.03368733]
[1732352428969,0.04323462,98080.0,98061.0,0.18368733]
[1732352429438,0.04323462,98080.0,98061.0,0.03368733]
[1732352430155,0.0012745,98079.0,98061.0,0.03368733]
[1732352442325,0.0012745,98079.0,98061.0,0.03454763]
[1732352443123,0.0012745,98079.0,98052.0,0.05137072]
[1732352443388,0.04495522,98080.0,98052.0,0.05137072]
[1732352443631,0.00127451,98079.0,98052.0,0.09156195]
[1732352445651,0.04495522,98080.0,98060.0,0.05474502]
[1732352446126,0.04622973,98080.0,98060.0,0.05474502]
[1732352446352,0.04495522,98080.0,98052.0,0.00794628]
[1732352446593,0.0479,98079.0,98060.0,0.05474502]
[1732352447070,0.04533751,98079.0,98060.0,0.05474502]
[1732352448511,0.0777,98078.0,98053.0,0.0474]
[1732352450233,0.0479,98077.0,98053.0,0.0474]
[1732352451943,0.0777,98076.0,98053.0,0.0474]
[1732352452170,0.0479,98075.0,98053.0,0.0474]
[1732352453990,0.0479,98075.0,98051.0,0.04285629]
[1732352454763,0.0479,98075.0,98053.0,0.0008603]
[1732352457902,0.0777,98076.0,98053.0,0.0008603]
[1732352460762,0.0459,98075.0,98053.0,0.0008603]
[1732352460978,0.0781,98074.0,98053.0,0.0008603]
[1732352461620,0.0781,98074.0,98050.0,0.05474502]
[1732352462045,0.0017206,98080.0,98050.0,0.05474502]
[1732352462046,0.0781,98072.0,98050.0,0.05474502]
[1732352465682,0.0459,98073.0,98050.0,0.05474502]
[1732352467874,0.047621,98073.0,98050.0,0.05474502]
[1732352468563,0.0755,98072.0,98050.0,0.05474502]
[1732352468792,0.0755,98069.0,98050.0,0.05474502]
[1732352468997,0.0755,98067.0,98049.0,0.04197069]
[1732352469207,0.0755,98065.0,98050.0,0.05474502]
[1732352469410,0.0454,98064.0,98049.0,0.04197069]
[1732352469633,0.0755,98061.0,98049.0,0.04197069]
[1732352469837,0.0755,98059.0,98049.0,0.04197069]
[1732352472667,0.0755,98059.0,98058.0,0.15]
[1732352472868,0.0755,98059.0,98040.0,0.05474502]
[1732352475471,0.0755,98057.0,98040.0,0.05474502]
[1732352476297,0.0755,98057.0,98040.0,0.04901202]
[1732352476508,0.03848001,98057.0,98047.0,0.05474502]
[1732352476711,0.03529899,98058.0,98047.0,0.05474502]
[1732352477378,0.02529899,98058.0,98047.0,0.05474502]
[1732352479600,0.02529899,98058.0,98047.0,0.05560542]
[1732352479815,0.0755,98057.0,98047.0,0.0008604]
[1732352480876,0.0464,98056.0,98047.0,0.0008604]
[1732352489345,0.00127476,98055.0,98047.0,0.0008604]
[1732352489568,0.0464,98056.0,98047.0,0.0008604]
[1732352490296,0.04767484,98056.0,98047.0,0.0008604]
[1732352493358,0.01278559,98056.0,98047.0,0.0008604]
[1732352493580,0.0755,98057.0,98047.0,0.0008604]
[1732352497826,0.002,98088.0,98048.0,0.0471]
[1732352498045,0.2,98094.0,98048.0,0.0471]
[1732352498046,0.00101917,98072.0,98048.0,0.1971]
[1732352498959,0.00101917,98072.0,98048.0,0.15]
[1732352499176,0.0481,98072.0,98051.0,0.0756]
[1732352499394,0.0481,98072.0,98052.0,0.00051023]
[1732352499891,0.0481,98088.0,98060.0,0.05474502]
[1732352500134,0.0017206,98089.0,98070.0,0.05474502]
[1732352500361,0.0017206,98089.0,98071.0,0.0789]
[1732352501334,0.0017206,98089.0,98071.0,0.2289]
[1732352502260,0.0017206,98089.0,98072.0,0.1987]
[1732352502712,0.0017206,98089.0,98072.0,0.19920994]
[1732352504281,0.0017206,98089.0,98072.0,0.15050994]
[1732352504523,0.0017206,98089.0,98071.0,0.11973376]
[1732352504524,0.00127444,98088.0,98071.0,0.04083376]
[1732352504746,0.00127447,98087.0,98071.0,0.04083376]
[1732352504965,0.00127448,98088.0,98064.0,0.0487]
[1732352507905,0.00127448,98088.0,98064.0,0.08962475]
[1732352508564,0.0765,98087.0,98064.0,0.08962475]
[1732352508782,0.00127447,98086.0,98064.0,0.08962475]
[1732352508999,0.0765,98087.0,98064.0,0.08962475]
[1732352509000,0.00127447,98085.0,98064.0,0.08962475]
[1732352509226,0.00127447,98086.0,98065.0,0.15]
[1732352510248,0.00127447,98086.0,98064.0,0.08962475]
[1732352510905,0.00127447,98086.0,98064.0,0.04092475]
[1732352511126,0.00127447,98086.0,98062.0,0.0789]
[1732352511345,0.00127447,98086.0,98063.0,0.15]
[1732352512028,0.0487,98085.0,98063.0,0.15]
[1732352512243,0.00127448,98084.0,98063.0,0.15]
[1732352513376,0.00127448,98084.0,98062.0,0.12043875]
[1732352513615,0.05474502,98080.0,98062.0,0.04153875]
[1732352513839,0.1274,98078.0,98056.0,0.0824]
[1732352514056,0.00127455,98077.0,98056.0,0.0824]
[1732352514968,0.00127455,98077.0,98056.0,0.12447447]
[1732352516036,0.00127455,98077.0,98063.0,0.0008603]
[1732352525271,0.10543528,98078.0,98063.0,0.0008603]
[1732352525494,0.00076443,98077.0,98063.0,0.0008603]
[1732352527328,0.0487,98078.0,98063.0,0.0008603]
[1732352527573,0.0487,98078.0,98050.0,0.05474502]
[1732352527807,0.0487,98078.0,98051.0,0.00076504]
[1732352528760,0.0487,98078.0,98063.0,0.0008603]
[1732352529000,0.00299516,98077.0,98050.0,0.05474502]
[1732352530649,0.00299516,98077.0,98051.0,0.1282]
[1732352532329,0.1283,98076.0,98051.0,0.1282]
[1732352533950,0.1283,98076.0,98052.0,0.15]
[1732352536917,0.0482,98075.0,98051.0,0.2307]
[1732352537114,0.04947457,98075.0,98050.0,0.04078588]
[1732352537235,0.05474502,98070.0,98050.0,0.04078588]
[1732352537448,0.05474502,98070.0,98047.0,0.15]
[1732352537449,0.0482,98067.0,98047.0,0.15]
[1732352537928,0.04201476,98067.0,98047.0,0.15]
[1732352538102,0.04201476,98067.0,98040.0,0.18294502]
[1732352538355,0.00664857,98067.0,98041.0,0.15]
[1732352539025,0.002,98097.0,98057.0,0.05474502]
[1732352539284,0.05474502,98090.0,98058.0,0.00101965]
[1732352539542,0.00127447,98089.0,98059.0,0.00101965]
[1732352539776,0.00127447,98089.0,98054.0,0.0475]
[1732352540020,0.00127447,98089.0,98055.0,0.00101965]
[1732352541195,0.05474502,98080.0,98055.0,0.00101965]
[1732352541412,0.00127447,98079.0,98055.0,0.04135173]
[1732352542114,0.1276,98078.0,98055.0,0.04135173]
[1732352542593,0.00127447,98079.0,98055.0,0.04135173]
[1732352542594,0.00127447,98079.0,98060.0,0.05474502]
[1732352542822,0.05646562,98090.0,98062.0,0.1214]
[1732352543055,0.05646562,98090.0,98062.0,0.12241966]
[1732352543292,0.05646562,98090.0,98063.0,0.15]
[1732352545596,0.1276,98089.0,98063.0,0.15]
[1732352547673,0.05474502,98080.0,98063.0,0.15]
[1732352547894,0.1276,98089.0,98063.0,0.15]
[1732352552456,0.1293206,98089.0,98063.0,0.15]
[1732352553581,0.05474502,98080.0,98063.0,0.15]
[1732352553806,0.05474502,98080.0,98041.0,0.02226444]
[1732352554037,0.05474502,98080.0,98050.0,0.05474502]
[1732352554259,0.05474502,98080.0,98051.0,0.00101966]
[1732352554480,0.0458,98079.0,98042.0,0.00101966]
[1732352556097,0.0458,98079.0,98050.0,0.05474502]
[1732352556314,0.0458,98079.0,98051.0,0.00101966]
[1732352556953,0.0458,98079.0,98052.0,0.1214]
[1732352557176,0.0458,98079.0,98054.0,0.0461]
[1732352557412,0.0458,98079.0,98055.0,0.00101966]
[1732352559374,0.0458,98079.0,98055.0,0.04259662]
[1732352563213,0.1224,98079.0,98055.0,0.04259662]
[1732352563646,0.1224,98079.0,98055.0,0.04345682]
[1732352573602,0.0472,98078.0,98055.0,0.04345682]
[1732352573857,0.0472,98076.0,98055.0,0.04345682]
[1732352580047,0.03684986,98076.0,98055.0,0.04345682]
[1732352583329,0.00101966,98075.0,98052.0,0.04493356]
[1732352583548,0.00101966,98075.0,98053.0,0.00101967]
[1732352583994,0.00168101,98079.0,98054.0,0.048]
[1732352584216,0.05474502,98100.0,98066.0,0.1295]
[1732352585511,0.05474502,98090.0,98067.0,0.15]
[1732352586371,0.002,98092.0,98066.0,0.04167178]
[1732352586618,0.05474502,98080.0,98066.0,0.04167178]
[1732352586908,0.05474502,98080.0,98061.0,0.15]
[1732352587131,0.1218,98079.0,98061.0,0.15]
[1732352587567,0.1218,98079.0,98060.0,0.048]
[1732352588666,0.1218,98079.0,98060.0,0.09009212]
[1732352591564,0.076,98069.0,98060.0,0.04209212]
[1732352591772,0.1218,98069.0,98055.0,0.0008602]
[1732352592235,0.05474502,98065.0,98055.0,0.0008602]
[1732352592459,0.1218,98069.0,98055.0,0.04237209]
[1732352597805,0.1218,98069.0,98044.0,0.07518405]
[1732352598054,0.1218,98069.0,98044.0,0.1173227]
[1732352599426,0.0451,98068.0,98044.0,0.1173227]
[1732352599872,0.0451,98058.0,98044.0,0.04213865]
[1732352600299,0.0451,98058.0,98025.0,0.02148244]
[1732352600548,0.0451,98058.0,98032.0,0.04304871]
[1732352600772,0.0451,98058.0,98033.0,0.1282]
[1732352601216,0.0451,98058.0,98034.0,0.15]
[1732352601671,0.0451,98058.0,98044.0,0.0008605]
[1732352602326,0.0459,98053.0,98044.0,0.0008605]
[1732352604639,0.0459,98053.0,98044.0,0.04106615]
[1732352608700,0.0459,98053.0,98045.0,0.02921621]
[1732352617309,0.0774,98059.0,98045.0,0.02921621]
[1732352620802,0.06839777,98059.0,98045.0,0.02921621]
[1732352621474,0.06190308,98059.0,98045.0,0.02921621]
[1732352622084,0.0471,98063.0,98045.0,0.17921621]
[1732352625733,0.001721,98059.0,98045.0,0.17921621]
[1732352626189,0.001721,98059.0,98044.0,0.01366988]
[1732352626419,0.001721,98059.0,98045.0,0.0453]
[1732352626877,0.001721,98059.0,98044.0,0.05586872]
[1732352626878,0.001721,98059.0,98046.0,0.0453]
[1732352647535,0.001721,98059.0,98044.0,0.04305934]
[1732352648063,0.0482,98058.0,98044.0,0.04305934]
[1732352653856,0.0482,98058.0,98032.0,0.07734211]
[1732352654376,0.0482,98058.0,98032.0,0.11913024]
[1732352656286,0.0482,98058.0,98033.0,0.15]
[1732352656688,0.0482,98058.0,98032.0,0.04174327]
[1732352656893,0.0482,98058.0,98031.0,0.0493]
[1732352657674,0.0823,98057.0,98031.0,0.0493]
[1732352658835,0.0823,98057.0,98031.0,0.1993]
[1732352660002,0.0823,98057.0,98031.0,0.2001605]
[1732352664225,0.001721,98059.0,98031.0,0.2001605]
[1732352664226,0.0772,98055.0,98031.0,0.2001605]
[1732352665123,0.0772,98053.0,98031.0,0.0501605]
[1732352665335,0.0483,98052.0,98031.0,0.0008605]
[1732352665570,0.1255,98051.0,98031.0,0.0008605]
[1732352665830,0.1255,98050.0,98031.0,0.0008605]
[1732352666021,0.0772,98049.0,98031.0,0.0008605]
[1732352669144,0.04018001,98049.0,98032.0,0.00101994]
[1732352670278,0.01565001,98050.0,98032.0,0.00101994]
[1732352670526,0.001721,98059.0,98034.0,0.2331]
[1732352672621,0.001721,98059.0,98035.0,0.00101987]
[1732352672858,0.0017212,98058.0,98035.0,0.00101987]
[1732352673311,0.1272,98057.0,98035.0,0.00101987]
[1732352675849,0.1272,98057.0,98034.0,0.2331]
[1732352677693,0.1272,98057.0,98033.0,0.0467]
[1732352678877,0.0017212,98058.0,98032.0,0.0008606]
[1732352678878,0.0471,98054.0,98032.0,0.0008606]
[1732352679840,0.1272,98049.0,98032.0,0.0008606]
[1732352680251,0.12710527,98049.0,98032.0,0.0008606]
[1732352681179,0.05474502,98042.0,98032.0,0.0008606]
[1732352681390,0.0499,98048.0,98032.0,0.0008606]
[1732352683209,0.0751,98047.0,98032.0,0.0008606]
[1732352684224,0.0751,98046.0,98032.0,0.0008606]
[1732352689522,0.001721,98049.0,98046.0,0.15]
[1732352690215,0.001721,98049.0,98032.0,0.0008606]
[1732352691377,0.001721,98049.0,98023.0,0.05004831]
[1732352691599,0.001721,98049.0,98024.0,0.00102005]
[1732352691827,0.0468,98048.0,98033.0,0.040636]
[1732352692063,0.0468,98048.0,98024.0,0.00102005]
[1732352692290,0.0795,98047.0,98025.0,0.040635]
[1732352697318,0.0795,98047.0,98025.0,0.0414955]
[1732352697553,0.0476,98046.0,98025.0,0.0414955]
[1732352697754,0.0775,98045.0,98025.0,0.0414955]
[1732352697991,0.0476,98044.0,98025.0,0.0414955]
[1732352701017,0.0791,98043.0,98025.0,0.0414955]
[1732352701286,0.047,98041.0,98025.0,0.0414955]
[1732352701961,0.047,98039.0,98025.0,0.0414955]
[1732352703411,0.001721,98049.0,98025.0,0.0414955]
[1732352703412,0.0791,98047.0,98030.0,0.1979]
[1732352703835,0.0791,98047.0,98030.0,0.15]
[1732352704519,0.0791,98047.0,98025.0,0.0414955]
[1732352706304,0.047,98046.0,98025.0,0.0008605]
[1732352706530,0.0791,98045.0,98025.0,0.0008605]
[1732352707649,0.0791,98043.0,98025.0,0.0008605]
[1732352708323,0.047,98042.0,98025.0,0.0008605]
[1732352708559,0.0791,98041.0,98025.0,0.0008605]
[1732352709238,0.047,98040.0,98025.0,0.0008605]
[1732352711004,0.07906001,98041.0,98025.0,0.0008605]
[1732352711225,0.00168101,98049.0,98030.0,0.05474502]
[1732352711454,0.00168101,98049.0,98025.0,0.0008605]
[1732352714255,0.0791,98048.0,98025.0,0.0008605]
[1732352718512,0.0791,98048.0,98026.0,0.0479]
[1732352720867,0.0808214,98048.0,98026.0,0.0479]
[1732352730461,0.0017214,98048.0,98026.0,0.0479]
[1732352732023,0.0017214,98048.0,98002.0,0.15]
[1732352732225,0.0017214,98048.0,98020.0,0.05474502]
[1732352732685,0.0017214,98048.0,98021.0,0.00102006]
[1732352733790,0.0017214,98048.0,98025.0,0.0008605]
[1732352735228,0.0017214,98048.0,98026.0,0.0471]
[1732352737249,0.1301,98047.0,98026.0,0.0471]
[1732352737697,0.1301,98047.0,98026.0,0.08781347]
[1732352745652,0.1301,98047.0,98020.0,0.20474502]
[1732352745653,0.0010201,98046.0,98020.0,0.06241867]
[1732352745897,0.0010201,98046.0,98021.0,0.00102007]
[1732352747738,0.0010201,98046.0,98039.0,0.15]
[1732352747968,0.0010201,98046.0,98020.0,0.07353618]
[1732352748197,0.0478,98045.0,98020.0,0.05474502]
[1732352748444,0.00127508,98044.0,98019.0,0.0757]
[1732352748654,0.00127508,98044.0,98020.0,0.0464]
[1732352749820,0.00127508,98044.0,98021.0,0.023]
[1732352752014,0.12847508,98043.0,98021.0,0.023]
[1732352752666,0.0478,98042.0,98021.0,0.023]
[1732352752880,0.0478,98040.0,98021.0,0.023]
[1732352753085,0.00127508,98039.0,98023.0,0.023]
[1732352753310,0.00127508,98039.0,98021.0,0.023]
[1732352755314,0.05474502,98031.0,98019.0,0.04032186]
[1732352755589,0.05474502,98040.0,98019.0,0.04032186]
[1732352755590,0.0478,98029.0,98019.0,0.04032186]
[1732352755822,0.0012753,98028.0,98011.0,0.0464]
[1732352756056,0.0012753,98027.0,98011.0,0.0464]
[1732352756309,0.0794,98030.0,98011.0,0.0464]
[1732352756556,0.00076487,98029.0,98011.0,0.0464]
[1732352757898,0.00076487,98029.0,98011.0,0.08801817]
[1732352758385,0.00076487,98029.0,98020.0,0.0008607]
[1732352769202,0.00076487,98029.0,98009.0,0.0757]
[1732352769203,0.00076487,98029.0,98009.0,0.08743826]
[1732352770397,0.00076487,98029.0,98010.0,0.05474502]
[1732352770621,0.00076487,98033.0,98010.0,0.05474502]
[1732352770840,0.00076487,98036.0,98011.0,0.02402022]
[1732352771723,0.0017206,98029.0,98011.0,0.02402022]
[1732352772190,0.0017206,98029.0,98014.0,0.0491]
[1732352772404,0.0017206,98029.0,98016.0,0.0491]
[1732352774922,0.00248547,98029.0,98016.0,0.0491]
[1732352775805,0.0017206,98029.0,98016.0,0.0491]
[1732352782610,0.0496206,98029.0,98016.0,0.0491]
[1732352782829,0.00076487,98028.0,98016.0,0.0491]
[1732352783480,0.00076487,98028.0,98014.0,0.023]
[1732352783701,0.0801,98027.0,98014.0,0.023]
[1732352783933,0.0801,98027.0,98012.0,0.023]
[1732352787741,0.0801,98027.0,98010.0,0.023]
[1732352787971,0.0801,98027.0,98012.0,0.023]
[1732352788407,0.0801,98027.0,98010.0,0.023]
[1732352788656,0.00076487,98026.0,98009.0,0.04260003]
[1732352789106,0.04866487,98026.0,98009.0,0.04260003]
[1732352794519,0.04866487,98026.0,98010.0,0.023]
[1732352798549,0.04866487,98026.0,98003.0,0.03478695]
[1732352801023,0.04866487,98026.0,98003.0,0.07515776]
[1732352801983,0.04866487,98026.0,98004.0,0.01329468]
[1732352805130,0.04866487,98026.0,98005.0,0.00102022]
[1732352815159,0.04866487,98026.0,98006.0,0.00463568]
[1732352815343,0.04866487,98026.0,98007.0,0.00102022]
[1732352815836,0.04866487,98026.0,98004.0,0.0008605]
[1732352815837,0.04866487,98026.0,98008.0,0.00471398]
[1732352816287,0.04866487,98026.0,98004.0,0.0238605]
[1732352816715,0.04866487,98026.0,98009.0,0.00471375]
[1732352816963,0.04866487,98026.0,98005.0,0.00102022]
[1732352817207,0.0017214,98048.0,98033.0,0.15]
[1732352817433,0.0017214,98048.0,98015.0,0.00102011]
[1732352817646,0.0017214,98048.0,98034.0,0.00470581]
[1732352817889,0.0017214,98048.0,98014.0,0.08002015]
[1732352818325,0.0017214,98048.0,98015.0,0.00471017]
[1732352818761,0.0017214,98048.0,98021.0,0.1993]
[1732352819199,0.0017214,98048.0,98022.0,0.00573226]
[1732352820137,0.0486,98045.0,98022.0,0.00573226]
[1732352820334,0.083,98044.0,98022.0,0.00573226]
[1732352822690,0.0477,98043.0,98022.0,0.00573226]
[1732352824531,0.0477,98043.0,98022.0,0.00471219]
[1732352824758,0.0477,98043.0,98023.0,0.023]
[1732352825228,0.0477,98043.0,98024.0,0.00469598]
[1732352827030,0.0477,98043.0,98021.0,0.023]
[1732352829297,0.05474502,98070.0,98040.0,0.05474502]
[1732352829526,0.05474502,98070.0,98033.0,0.00101994]
[1732352829964,0.05474502,98070.0,98034.0,0.00101994]
[1732352832004,0.05474502,98070.0,98034.0,0.04176953]
[1732352832253,0.0477,98058.0,98034.0,0.00101994]
[1732352832473,0.0477,98058.0,98032.0,0.15]
[1732352832474,0.124,98058.0,98033.0,0.00101994]
[1732352833359,0.0017206,98046.0,98033.0,0.00101994]
[1732352833852,0.0017206,98046.0,98033.0,0.04254042]
[1732352834076,0.0017206,98046.0,98033.0,0.00101994]
[1732352836851,0.0017206,98046.0,98032.0,0.19188324]
[1732352837271,0.0006625,98046.0,98032.0,0.19188324]
[1732352839196,0.0477,98058.0,98034.0,0.13]
[1732352839442,0.0477,98058.0,98036.0,0.13]
[1732352839671,0.0477,98058.0,98037.0,0.15]
[1732352840751,0.0763,98066.0,98040.0,0.05474502]
[1732352840752,0.0489,98065.0,98040.0,0.05474502]
[1732352840972,0.0489,98065.0,98041.0,0.00101987]
[1732352841408,0.0489,98065.0,98040.0,0.05474502]
[1732352841409,0.0489,98065.0,98042.0,0.00101987]
[1732352841629,0.0037204,98090.0,98043.0,0.1256]
[1732352841630,0.03064036,98072.0,98043.0,0.1256]
[1732352841841,0.03064036,98072.0,98044.0,0.15101979]
[1732352842526,0.03064036,98072.0,98044.0,0.15]
[1732352844058,0.05474502,98070.0,98044.0,0.15]
[1732352845470,0.0489,98069.0,98035.0,0.023]
[1732352845674,0.1289,98059.0,98033.0,0.0008602]
[1732352845901,0.1289,98059.0,98034.0,0.04132919]
[1732352846123,0.1289,98059.0,98033.0,0.0008602]
[1732352846814,0.1289,98059.0,98033.0,0.04193796]
[1732352847031,0.1289,98059.0,98033.0,0.0008602]
[1732352848166,0.05474502,98060.0,98033.0,0.0008602]
[1732352848167,0.05474502,98043.0,98033.0,0.0008602]
[1732352848395,0.1289,98042.0,98033.0,0.04228007]
[1732352848833,0.1289,98042.0,98033.0,0.0008602]
[1732352852133,0.1289,98042.0,98033.0,0.04114283]
[1732352852344,0.1289,98042.0,98033.0,0.0008602]
[1732352854087,0.08,98053.0,98033.0,0.0418972]
[1732352854317,0.1289,98069.0,98034.0,0.00101993]
[1732352854552,0.1289,98069.0,98035.0,0.00101991]
[1732352854798,0.1289,98069.0,98033.0,0.0008602]
[1732352855033,0.1289,98069.0,98034.0,0.00101985]
[1732352855695,0.1289,98069.0,98040.0,0.05474502]
[1732352856333,0.1289,98069.0,98041.0,0.0773]
[1732352856561,0.1289,98069.0,98041.0,0.2273]
[1732352856796,0.0017204,98053.0,98041.0,0.2273]
[1732352856936,0.0017204,98053.0,98043.0,0.0483]
[1732352857148,0.0017204,98053.0,98044.0,0.00101979]
[1732352857382,0.0017204,98053.0,98045.0,0.00101979]
[1732352857541,0.0017204,98053.0,98044.0,0.00101979]
[1732352859091,0.0017204,98053.0,98043.0,0.0483]
[1732352860576,0.0017204,98053.0,98043.0,0.08858092]
[1732352866050,0.05474502,98070.0,98043.0,0.08858092]
[1732352868405,0.0017204,98053.0,98043.0,0.08858092]
[1732352869368,0.0017204,98053.0,98042.0,0.15]
[1732352869369,0.0017204,98053.0,98042.0,0.03099561]
[1732352869926,0.0017204,98053.0,98041.0,0.0773]
[1732352871441,0.0017204,98053.0,98042.0,0.15]
[1732352873152,0.0786,98069.0,98042.0,0.15]
[1732352880832,0.0786,98069.0,98042.0,0.1508599]
[1732352883046,0.0786,98069.0,98043.0,0.02335784]
[1732352884185,0.0786,98069.0,98044.0,0.0010198]
[1732352884630,0.0786,98069.0,98045.0,0.02053503]
[1732352885046,0.0786,98069.0,98046.0,0.00546184]
[1732352885255,0.0488,98070.0,98047.0,0.09733503]
[1732352885469,0.0488,98070.0,98048.0,0.0010198]
[1732352885683,0.0488,98070.0,98048.0,0.00543426]
[1732352885899,0.0488,98070.0,98049.0,0.02053503]
[1732352886285,0.0488,98070.0,98050.0,0.004414]
[1732352886503,0.0488,98070.0,98051.0,0.02053503]
[1732352886850,0.0488,98070.0,98052.0,0.00441354]
[1732352887073,0.0488,98070.0,98053.0,0.02053503]
[1732352887551,0.0488,98070.0,98054.0,0.00441308]
[1732352887970,0.0488,98070.0,98055.0,0.02053503]
[1732352888378,0.0488,98070.0,98056.0,0.00441263]
[1732352888644,0.0488,98070.0,98057.0,0.02053503]
[1732352888846,0.0488,98070.0,98057.0,0.02494743]
[1732352892685,0.0488,98070.0,98057.0,0.06586921]
[1732352892918,0.0471,98069.0,98057.0,0.02494743]
[1732352893501,0.0471,98067.0,98057.0,0.02494743]
[1732352893627,0.0471,98067.0,98057.0,0.02053503]
[1732352901915,0.0471,98067.0,98036.0,0.15]
[1732352902113,0.0759,98066.0,98030.0,0.05474502]
[1732352902353,0.0483,98059.0,98037.0,0.00442378]
[1732352902568,0.1,98066.0,98018.0,0.24792441]
[1732352902569,0.0483,98057.0,98018.0,0.24792441]
[1732352902783,0.0483,98057.0,98030.0,0.05474502]
[1732352903211,0.0483,98057.0,98031.0,0.00442286]
[1732352904903,0.0483,98057.0,98032.0,0.0808]
[1732352905118,0.0483,98057.0,98032.0,0.08181985]
[1732352905328,0.0483,98057.0,98033.0,0.00443341]
[1732352905540,0.0483,98057.0,98034.0,0.00101985]
[1732352905760,0.0483,98057.0,98033.0,0.00443341]
[1732352905963,0.0483,98057.0,98035.0,0.00443295]
[1732352906174,0.0483,98057.0,98034.0,0.00443318]
[1732352906387,0.0483,98057.0,98036.0,0.00443272]
[1732352906560,0.0483,98057.0,98035.0,0.00443295]
[1732352906796,0.0483,98057.0,98037.0,0.00443249]
[1732352907002,0.0483,98057.0,98036.0,0.00443272]
[1732352907218,0.0483,98057.0,98038.0,0.00443226]
[1732352907395,0.0483,98057.0,98037.0,0.00443249]
[1732352907639,0.0483,98057.0,98039.0,0.00478946]
[1732352907820,0.0483,98057.0,98038.0,0.00478969]
[1732352908036,0.0483,98057.0,98032.0,0.0808]
[1732352908239,0.0483,98057.0,98039.0,0.00478946]
[1732352908457,0.0483,98057.0,98032.0,0.0808]